Cogmind - Beta 11.1 @@@ ROGUE MODE // 2022.10.15 @ 21:23:12 Player: DuckBoy Result: Destroyed by H-55 Commando with Gauss Rifle Performance ------------- Evolutions (2) 1000 Regions Visited (7) 1400 Robots Destroyed (102) 510 Value Destroyed (1985) 1985 Prototype IDs (25) 500 Alien Tech Used (0) 0 Bonus (500) 500 TOTAL SCORE: 5895 Bonus ------- Entered Garrisons 200 Aligned with FarCom 300 Cogmind --------- Core Integrity 0/550 Matter 189/300 Energy 100/100 System Corruption 10% Temperature Cool (0) Movement Core (3400) Ox67 Location -8/Garrison Parts ------- > --- POWER (1) -------- (None) > --- PROPULSION (3) --- (None) > --- UTILITY (4) ------ Humpback > --- WEAPON (3) ------- Light Assault Rifle Light Assault Rifle > --- INVENTORY (35) --- Light Ion Engine Improved Ion Engine Improved Ion Engine Large Storage Unit Humpback Sensor Array Terrain Scanner Improved Terrain Scanner Terrain Scan Processor Cloak of Protection Peak State ------------ > --- POWER ------------ Deuterium Engine > --- PROPULSION ------- Wheel Wheel Wheel > --- UTILITY ---------- Humpback Structural Scanner Improved Light Armor Plating > --- WEAPON ----------- Heavy EM Pulse Gun Improved EM Shotgun EM Pulse Cannon > --- INVENTORY -------- Light Ion Engine Improved Ion Engine Improved Ion Engine Light Treads Wheel Wheel Wheel Wheel Wheel Heat Sink Large Storage Unit Humpback Humpback Sensor Array Terrain Scanner Improved Terrain Scanner Terrain Scan Processor Seismic Detector Cloak of Protection Light Armor Plating Heavy EM Pulse Gun Heavy EM Pulse Gun Improved EM Shotgun Beam Rifle Heavy Assault Rifle Maul [Rating: 24] Favorites ----------- Power Improved Ion Engine Engine Improved Ion Engine Propulsion Light Treads Treads Light Treads Wheel Wheel Utility Structural Scanner Device Structural Scanner Storage Large Storage Unit Protection Improved Light Armor Plating Weapon Improved EM Shotgun Energy Gun Improved EM Shotgun Energy Cannon EM Pulse Cannon Ballistic Gun Improved Assault Rifle Impact Weapon Maul Build | -11 -10 -9 -9 -9 -8 -8 -8 ------- Run | Scr Mat Mat Min Exi Min Mat Gar Slots Evolved 4 | . . 2 . . . 2 . Power . | . . . . . . . . Propulsion 1 | . . . . . . 1 . Utility 2 | . . 1 . . . 1 . Weapon 1 | . . 1 . . . . . Parts Attached 81 | 6 20 16 3 3 7 19 7 Power 7 | 1 3 2 . . . 1 . Engine 7 | 1 3 2 . . . 1 . Core . | . . . . . . . . Reactor . | . . . . . . . . Propulsion 26 | 2 6 4 1 1 5 6 1 Treads 8 | 1 1 4 1 . . . 1 Leg . | . . . . . . . . Wheel 18 | 1 5 . . 1 5 6 . Hover . | . . . . . . . . Flight . | . . . . . . . . Utility 21 | 1 6 5 . 2 1 3 3 Device 14 | . 5 4 . 1 . 2 2 Storage 5 | 1 1 1 . 1 . . 1 Processor . | . . . . . . . . Hackware . | . . . . . . . . Protection 2 | . . . . . 1 1 . Artifact . | . . . . . . . . Weapon 27 | 2 5 5 2 . 1 9 3 Energy Gun 14 | 1 5 3 . . 1 4 . Energy Cannon 1 | . . . . . . 1 . Ballistic Gun 10 | 1 . 2 1 . . 3 3 Ballistic Cannon . | . . . . . . . . Launcher . | . . . . . . . . Special Weapon . | . . . . . . . . Impact Weapon 2 | . . . 1 . . 1 . Slashing Weapon . | . . . . . . . . Piercing Weapon . | . . . . . . . . Special Melee Weapon . | . . . . . . . . Unidentified Prototypes 2 | . . 2 . . . . . Corrupted Parts 4 | . . . . . 2 1 1 System Corruption 12 | . . . . . 2 5 5 Parts Lost 46 | . 10 6 2 . 1 18 9 Power 5 | . 2 2 . . . . 1 Propulsion 16 | . 4 1 1 . 1 6 3 Utility 6 | . . 1 . . . 3 2 Weapon 19 | . 4 2 1 . . 9 3 Highest Loss Streak 14 | . 5 2 2 . 1 14 9 To Critical Strikes . | . . . . . . . . Average Slot Usage (%) 85 | . 85 95 98 74 85 82 67 Engine 10 | . 9 10 11 11 11 9 6 Treads 12 | . 12 18 21 15 . . . Wheel 10 | . 12 2 . 6 21 23 12 Device 12 | . 10 21 22 8 2 9 13 Storage 11 | . 14 11 11 11 11 9 9 Protection 2 | . . . . . 8 6 . Energy Gun 20 | . 21 13 22 22 30 17 . Ballistic Gun 6 | . 4 17 8 . . 3 17 Naked Turns . | . . . . . . . . Heaviest Build 225 | 10 25 38 38 214 219 225 219 Greatest Support 40 | 20 40 40 40 40 20 30 20 Greatest Overweight (x) 21 | . 2 2 . 21 21 11 10 Average Overweight (x) 3 | . . . . 7 10 7 10 Largest Inventory Capacity 35 | 8 15 15 15 35 35 35 35 Average Capacity 22 | 6 9 15 15 27 35 35 35 Most Carried 29 | 2 8 15 15 22 29 28 17 Average Carried 16 | 1 4 13 14 18 24 24 13 Final Capacity 35 | 8 15 15 15 35 35 35 35 Final Carried 29 | 2 7 15 14 21 29 17 11 Class Distribution -------------------- 26% | Hauler-Mutant 25% | Scavenger-Skirmisher 18% | Mutant 17% | Hauler-Skirmisher 11% | Scavenger-Mutant Dominant Class ---------------- Mutant | -10/Materials Scavenger-Skirmisher | -9/Materials Scavenger-Skirmisher | -9/Mines Hauler-Mutant | -9/Exiles Hauler-Skirmisher | -8/Mines Hauler-Skirmisher | -8/Materials Hauler-Mutant | -8/Garrison Resources | -11 -10 -9 -9 -9 -8 -8 -8 ----------- Run | Scr Mat Mat Min Exi Min Mat Gar Matter Collected 1231 | 179 264 391 86 . 95 216 . Remotely . | . . . . . . . . Salvage Created 3391 | . 682 1035 514 . 222 838 100 Parts 219 | . 37 84 28 . 21 42 7 Haulers Intercepted 6 | . 2 4 . . . . . Recyclers Shooed 4 | . 1 1 1 . . 1 . Parts Field Recycled . | . . . . . . . . Retrieved Matter . | . . . . . . . . Parts Self-Destructed . | . . . . . . . . Prevented . | . . . . . . . . Kills | -11 -10 -9 -9 -9 -8 -8 -8 ------- Run | Scr Mat Mat Min Exi Min Mat Gar Combat Hostiles Destroyed 64 | . 15 15 10 . 4 18 2 Melee 2 | . . . . . . 1 1 Guns 55 | . 15 15 9 . 2 14 . Cannons 2 | . . . . . . 2 . AOE 3 | . . . 1 . 2 . . Classes Destroyed 12 | . 6 3 2 . . 1 . Worker 10 | . . 2 . . 5 3 . Builder 11 | . 1 7 3 . . . . Tunneler 4 | . 1 . 1 . 2 . . Hauler 6 | . 2 4 . . . . . Recycler 3 | . . . 1 . . 2 . Watcher 5 | . 1 4 . . . . . Swarmer 26 | . 3 7 3 . 4 9 . Grunt 27 | . 12 2 6 . . 6 1 Brawler 1 | . . 1 . . . . . Sentry 7 | . . 5 . . . 1 1 Hunter 2 | . . . . . . 2 . Assembled 1 | . . . 1 . . . . Best Kill Streak 6 | . 4 6 6 . 4 5 2 Combat Bots Only 6 | . 3 6 3 . 4 5 2 Max Kills in Single Turn 3 | . 1 2 2 . 3 3 1 Gunslinging . | . . . . . . . . Exploded 2 | . . . 1 . 2 . . Melee 1 | . . . . . . 1 1 Uniques/NPCs Destroyed . | . . . . . . . . Combat | -11 -10 -9 -9 -9 -8 -8 -8 -------- Run | Scr Mat Mat Min Exi Min Mat Gar Damage Taken 4964 | . 1048 624 295 . 57 1663 1277 Core 816 | . 149 86 23 . . 212 346 Absorbed by Shields 127 | . . . . . . . 127 Regen/Repaired (Parts) 16 | . . 16 . . . . . Core Remaining (%) 70 | 100 40 . . . 72 . . Volleys Fired 250 | . 89 63 27 . 9 51 11 Largest 3 | . 2 3 3 . 3 3 2 Hottest 153 | . 80 113 113 . 140 153 56 Shots Fired 524 | . 159 142 68 . 26 111 18 Gun 502 | . 159 142 68 . 26 89 18 Cannon 22 | . . . . . . 22 . Launcher . | . . . . . . . . Special . | . . . . . . . . Kinetic 186 | . 28 87 22 . . 31 18 Thermal 159 | . 131 27 . . . 1 . Explosive . | . . . . . . . . Electromagnetic 179 | . . 28 46 . 26 79 . Robot Hit Streak 21 | . 17 21 14 . 10 14 10 Robot Miss Streak 5 | . 5 3 3 . 1 4 1 Penetration Max 1 | . . . . . . 1 1 Secondary Targets 12 | . 3 5 3 . 1 . . Max Gunslinging Chain 1 | . 1 1 1 . 1 . . Shots Hit Robots 357 | . 120 93 43 . 14 66 21 Core Hits 150 | . 41 42 21 . 11 31 4 Critical Kills 1 | . . 1 . . . . . Critical Parts Destroyed 4 | . . 1 . . . 1 2 Critical Strikes 6 | . . 2 . . . 2 2 Destroy 3 | . . 2 . . . . 1 Corrupt 1 | . . . . . . 1 . Smash 2 | . . . . . . 1 1 Melee Attacks 20 | . . . 7 . . 6 7 Impact 20 | . . . 7 . . 6 7 Slashing . | . . . . . . . . Piercing . | . . . . . . . . Sneak Attacks 1 | . . . . . . . 1 Combat Hostiles 1 | . . . . . . . 1 Follow-up Attacks . | . . . . . . . . Damage Inflicted 6090 | . 1303 1601 823 . 314 1471 578 Guns 4876 | . 1303 1506 685 . 214 845 323 Cannons 299 | . . . . . . 299 . Explosions 518 | . . 95 138 . 100 185 . Melee 397 | . . . . . . 142 255 Ramming . | . . . . . . . . Kinetic 1810 | . 164 876 151 . . 296 323 Thermal 1868 | . 1139 306 138 . 100 185 . Explosive . | . . . . . . . . Electromagnetic 2015 | . . 419 534 . 214 848 . Impact 397 | . . . . . . 142 255 Slashing . | . . . . . . . . Piercing . | . . . . . . . . Highest Corruption 10 | . . . . . 2 5 10 Average Corruption 4 | . . . . . 1 5 6 Corruption Purged . | . . . . . . . . Corruption Blocked . | . . . . . . . . Effects 10 | . . . . . 1 3 6 Message Errors 4 | . . . . . 1 1 2 Matter Fused 2 | . . . . . . . 2 Energy Discharges 1 | . . . . . . . 1 Data Loss (minor) 1 | . . . . . . 1 . Data Loss (major) 1 | . . . . . . 1 . Weapon Failures 1 | . . . . . . . 1 Overload Shots . | . . . . . . . . Overflow Damage 159 | . . . . . 22 109 28 Projectiles 1 | . . . . . . 1 . Explosions 45 | . . . . . 22 23 . Melee 113 | . . . . . . 85 28 Knockbacks . | . . . . . . . . Impact . | . . . . . . . . Kinetic . | . . . . . . . . Secondary . | . . . . . . . . Self-Inflicted Damage 144 | . . 26 40 . 35 43 . Shots 4 | . . 1 1 . 1 1 . Rammed 1 | . . . . . . . 1 Targets Rammed 1 | . . . . . . . 1 Kicked . | . . . . . . . . Crushed . | . . . . . . . . Highest Temperature 339 | . 118 56 96 . 168 339 . Average Temperature 75 | . 35 21 31 . 53 124 . Received Heat Transfer 1775 | . 582 159 150 . . 513 371 Siege Activations . | . . . . . . . . Robots Corrupted . | . . . . . . . . Combat Hostiles . | . . . . . . . . Parts Fried 10 | . . 1 2 . . 7 . Impact Corruptions 5 | . . . . . . 3 2 Robots Melted . | . . . . . . . . Combat Hostiles . | . . . . . . . . Parts Melted 4 | . 2 1 . . 1 . . Heat Transferred 3650 | . 2575 625 200 . 100 150 . Parts Sabotaged . | . . . . . . . . Parts Stolen . | . . . . . . . . Parts Stripped . | . . . . . . . . Power Chain Reactions 9 | . . 3 3 . 2 1 . Missiles Intercepted . | . . . . . . . . Alert | -11 -10 -9 -9 -9 -8 -8 -8 ------- Run | Scr Mat Mat Min Exi Min Mat Gar Peak Influence 297 | . 267 297 174 . 93 234 252 Initial 152 | . . 64 31 . . 17 152 Average 120 | . 122 166 108 . 40 133 216 Maximum Alert Level 1 | . 1 1 . . . 1 1 Low Security (%) 81 | 100 80 56 100 . 100 93 40 Level 1 18 | . 19 43 . . . 6 59 Level 2 . | . . . . . . . . Level 3 . | . . . . . . . . Level 4 . | . . . . . . . . Level 5 . | . . . . . . . . High Security . | . . . . . . . . Max Security . | . . . . . . . . Squads Dispatched 10 | . 4 . . . . 6 . Investigation 4 | . 2 . . . . 2 . Extermination . | . . . . . . . . Reinforcement 3 | . 2 . . . . 1 . Assault . | . . . . . . . . Garrison 3 | . . . . . . 3 . Intercept . | . . . . . . . . Searches Triggered . | . . . . . . . . Construction Impeded . | . . . . . . . . Haulers Reinforced . | . . . . . . . . Active Scanning Responses . | . . . . . . . . Cargo Convoy Interrupts . | . . . . . . . . Stealth | -11 -10 -9 -9 -9 -8 -8 -8 --------- Run | Scr Mat Mat Min Exi Min Mat Gar Distress Signals 3 | . 1 1 . . . 1 . Communications Jammed . | . . . . . . . . Distress Signals . | . . . . . . . . Times Spotted 86 | . 22 20 11 . 4 22 7 Peak Tracking Total 7 | . 4 4 3 . 1 6 7 Tactical Retreats 4 | . . 1 1 . . 2 . Traps | -11 -10 -9 -9 -9 -8 -8 -8 ------- Run | Scr Mat Mat Min Exi Min Mat Gar Traps Triggered 1 | . 1 . . . . . . Indirectly . | . . . . . . . . Trap Hack Attempts . | . . . . . . . . Triggered . | . . . . . . . . Disarmed . | . . . . . . . . Reprogrammed . | . . . . . . . . Reused . | . . . . . . . . Traps Extracted . | . . . . . . . . Installed 1 | . . . 1 . . . . Triggered . | . . . . . . . . Machines | -11 -10 -9 -9 -9 -8 -8 -8 ---------- Run | Scr Mat Mat Min Exi Min Mat Gar Machines Disabled 1 | . . . . . 1 . . Max in Single Turn 1 | . . . . . 1 . . Machines Sabotaged . | . . . . . . . . Garrisons Compromised . | . . . . . . . . Overloaded Fab Kills . | . . . . . . . . Hacking | -11 -10 -9 -9 -9 -8 -8 -8 --------- Run | Scr Mat Mat Min Exi Min Mat Gar Machines Accessed 12 | . 2 5 . 2 . 3 . Terminals 7 | . 2 3 . . . 2 . Fabricators . | . . . . . . . . Repair Stations 1 | . . 1 . . . . . Recycling Units . | . . . . . . . . Scanalyzers 1 | . . 1 . . . . . Garrison Access 1 | . . . . . . 1 . Total Hacks 37 | . 6 17 . 5 . 9 . Successful 24 | . 2 11 . 5 . 6 . Failed 13 | . 4 6 . . . 3 . Catastrophic 3 | . 1 1 . . . 1 . Database Lockouts . | . . . . . . . . Manual 21 | . 7 6 . 1 . 7 . Terminals 21 | . 6 10 . . . 5 . Fabricators . | . . . . . . . . Repair Stations 2 | . . 2 . . . . . Recycling Units . | . . . . . . . . Scanalyzers 5 | . . 5 . . . . . Garrison Access 4 | . . . . . . 4 . Terminal Hacks 11 | . 2 2 . 5 . 2 . Record 4 | . . . . 4 . . . Part Schematic 2 | . 1 . . . . 1 . Robot Schematic 1 | . 1 . . . . . . Terminal Index 1 | . . . . . . 1 . Unreport Threat 2 | . . 2 . . . . . EX-Prototype ID Bank 1 | . . . . 1 . . . Fabricator Hacks . | . . . . . . . . Repair Station Hacks 2 | . . 2 . . . . . Scan Component 1 | . . 1 . . . . . Repair 1 | . . 1 . . . . . Recycling Unit Hacks . | . . . . . . . . Scanalyzer 4 | . . 4 . . . . . Insert Component 2 | . . 2 . . . . . Analyze 2 | . . 2 . . . . . Garrison Access Hacks 1 | . . . . . . 1 . Unlock Access 1 | . . . . . . 1 . Unauthorized Hacks 6 | . . 3 . . . 3 . Terminals 5 | . . 3 . . . 2 . Botnet 3 | . . 2 . . . 1 . Operators 2 | . . 1 . . . 1 . Fabricators . | . . . . . . . . Repair Stations . | . . . . . . . . Recycling Units . | . . . . . . . . Scanalyzers . | . . . . . . . . Garrison Access 1 | . . . . . . 1 . Reprogram 1 | . . . . . . 1 . Data Cores Recovered . | . . . . . . . . Used . | . . . . . . . . Hacking Detections 8 | . 2 3 . . . 3 . Full Trace Events 2 | . 1 . . . . 1 . Feedback Events . | . . . . . . . . Feedback Blocked . | . . . . . . . . Robot Schematics Acquired 1 | . 1 . . . . . . Robots Built . | . . . . . . . . Authchips . | . . . . . . . . Time . | . . . . . . . . Total Robot Build Rating . | . . . . . . . . Part Schematics Acquired 4 | . 1 2 . . . 1 . Parts Built . | . . . . . . . . Authchips . | . . . . . . . . Time . | . . . . . . . . Total Part Build Rating . | . . . . . . . . Parts Repaired 1 | . . 1 . . . . . Time 26 | . . 26 . . . . . Parts Recycled . | . . . . . . . . Recycled Matter . | . . . . . . . . Retrieved Matter . | . . . . . . . . Retrieved Components . | . . . . . . . . Parts Scanalyzed 2 | . . 2 . . . . . Part Schematics Acquired 2 | . . 2 . . . . . Parts Damaged . | . . . . . . . . Bothacking | -11 -10 -9 -9 -9 -8 -8 -8 ------------ Run | Scr Mat Mat Min Exi Min Mat Gar Used RIF Installer . | . . . . . . . . Robots Hacked . | . . . . . . . . Non-combat . | . . . . . . . . Combat . | . . . . . . . . Robot Hacks Applied . | . . . . . . . . Relay Couplers Released . | . . . . . . . . Fabnet Peak Effective % . | . . . . . . . . Robots Rewired . | . . . . . . . . Allies Hacked . | . . . . . . . . Hacks Repelled . | . . . . . . . . Allies | -11 -10 -9 -9 -9 -8 -8 -8 -------- Run | Scr Mat Mat Min Exi Min Mat Gar Total Allies 4 | . . . 2 . . 2 . Largest Group 2 | . . . 2 . . . 2 Highest-Rated Group 46 | . . . 46 . . . 10 Highest-Rated Ally 31 | . . . 31 . . . 5 Total Orders . | . . . . . . . . Ally Attacks 11 | . . . . . . . 11 Total Damage 67 | . . . . . . . 67 Kills . | . . . . . . . . Allies Corrupted 1 | . . . 1 . . . . Allies Melted . | . . . . . . . . Intel | -11 -10 -9 -9 -9 -8 -8 -8 ------- Run | Scr Mat Mat Min Exi Min Mat Gar Robot Analysis Total . | . . . . . . . . Derelict Logs Recovered 1 | . . . 1 . . . . Drone Launches . | . . . . . . . . Drone Recoveries . | . . . . . . . . Exploration | -11 -10 -9 -9 -9 -8 -8 -8 ------------- Run | Scr Mat Mat Min Exi Min Mat Gar Turns Passed 5643 | 79 791 1100 670 1341 773 728 161 Spaces Moved 2461 | 48 432 526 340 528 297 252 38 Core 3 | 3 . . . . . . . Treads 1250 | 38 83 447 340 342 . . . Legs . | . . . . . . . . Wheels 1208 | 7 349 79 . 186 297 252 38 Hover . | . . . . . . . . Flight . | . . . . . . . . Fastest Speed 50 | 50 80 95 160 160 230 185 230 Average Speed 182 | 144 108 150 160 252 235 197 230 Slowest Speed 560 | 160 160 240 160 560 395 245 230 Overloaded Moves . | . . . . . . . . Propulsion Burnouts . | . . . . . . . . Robots Hopped . | . . . . . . . . Cave-ins Triggered . | . . . . . . . . Exploration Rate (%) 42 | 3 71 50 54 91 46 19 8 Regions Visited 7 Branch Regions 3 Pre-discovered Areas 1 | . . . . 1 . . . Known Exits Taken 1 | . . . . . . 1 . Unknown Exits Taken 6 | 1 1 1 1 1 1 . . Scrap Searched 2 | . . . 1 . 1 . . Spaces Dug 1 | . . . 1 . . . . Terrain Destroyed 31 | . . 8 11 . 9 3 . Melee 1 | . . . 1 . . . . Projectile . | . . . . . . . . AOE 30 | . . 8 10 . 9 3 . Terrain Rammed . | . . . . . . . . Walls Destroyed . | . . . . . . . . Machines Disabled . | . . . . . . . . Actions | -11 -10 -9 -9 -9 -8 -8 -8 --------- Run | Scr Mat Mat Min Exi Min Mat Gar Total 3087 | 55 597 705 396 538 353 376 67 Wait 207 | . 44 80 15 . 23 45 . Move 2454 | 47 431 525 339 527 296 251 38 Hop . | . . . . . . . . Pick Up 49 | 2 9 13 2 5 14 3 1 Fast Attach 23 | 6 4 9 . 1 . 3 . Attach 36 | . 7 2 1 1 4 15 6 Detach 2 | . 1 . . 1 . . . Swap 22 | . 9 5 2 1 3 1 1 Drop 22 | . 3 8 2 2 4 1 2 Fire 250 | . 89 63 27 . 9 51 11 Melee 20 | . . . 7 . . 6 7 Ram 1 | . . . . . . . 1 Kick . | . . . . . . . . Crush . | . . . . . . . . Escape Stasis . | . . . . . . . . Rewire . | . . . . . . . . Trap 1 | . . . 1 . . . . Miscellaneous . | . . . . . . . . Route ------- -11/Scrapyard -10/Materials (discovered 3 exits: *Mat x2 / [*Min]) -9/Materials (discovered 3 exits: *Mat / [*Min x2]) -9/Mines (discovered 3 exits: *Mat x2 / *Exi) -9/Exiles (discovered 2 exits: [*Min x2]) -8/Mines -8/Materials -8/Garrison History --------- Turn | Location | Event 19 | -11/Scrapyard | Discovered new exit (range 15) 80 | -11/Scrapyard | Entered Materials 302 | -10/Materials | Build established: Mutant 414 | -10/Materials | Discovered new exit (range 8) 472 | -10/Materials | Discovered new exit (range 14) 497 | -10/Materials | Discovered new exit (range 7) 635 | -10/Materials | Lost 5 parts (2p1n2w) 740 | -10/Materials | Core integrity fell below 50% 796 | -10/Materials | Lost 3 parts (2n1w) 871 | -10/Materials | Entered another Materials area 871 | -9/Materials | Evolved 2 slots: Utility x1, Weapon x1 1310 | -9/Materials | Discovered new exit (range 16) 1371 | -9/Materials | Repaired Structural Scanner 1594 | -9/Materials | Discovered new exit (range 15) 1620 | -9/Materials | Discovered new exit (range 16) 1705 | -9/Materials | Build established: Scavenger-Skirmisher 1971 | -9/Materials | Entered Mines 2087 | -9/Mines | Learned 2 Materials zone layouts 2145 | -9/Mines | Found a hidden stash of uninstalled traps 2228 | -9/Mines | Discovered new exit (range 9) 2317 | -9/Mines | Excavation squad dispatched 2317 | -9/Mines | A large section of the Mines collapsed 2456 | -9/Mines | Discovered new exit (range 4) 2633 | -9/Mines | Deemed a non-threat by the Exiles lab entrance 2633 | -9/Mines | Discovered new exit (range 6) 2641 | -9/Mines | Entered Exiles 2669 | -9/Exiles | Discovered new exit (range 14) 2707 | -9/Exiles | Met 8R-AWN 2733 | -9/Exiles | Met EX-HEX 2795 | -9/Exiles | Met EX-DEC 2803 | -9/Exiles | Learned location of Zion (-7) 2866 | -9/Exiles | Visited The Gauntlet 2872 | -9/Exiles | Build established: Scavenger-Mutant 3387 | -9/Exiles | Met EX-BIN 3443 | -9/Exiles | Aligned with FarCom system 3447 | -9/Exiles | Given EX-Vault access code 3459 | -9/Exiles | Build established: Hauler-Mutant 3545 | -9/Exiles | Opened EX-Vault 3581 | -9/Exiles | Found Cloak of Protection 3665 | -9/Exiles | Warned to stay clear of 0b10 Research branches 3918 | -9/Exiles | Discovered new exit (range 10) 3982 | -9/Exiles | Left Exiles lab with Cloak of Protection 3982 | -9/Exiles | Entered Mines 4243 | -8/Mines | Discovered new exit (range 5) 4464 | -8/Mines | Build established: Hauler-Skirmisher 4755 | -8/Mines | Entered Materials 4755 | -8/Materials | Evolved 2 slots: Propulsion x1, Utility x1 5281 | -8/Materials | Garrison activated, responded to threat 5405 | -8/Materials | Lost 14 parts (5n3u6w) 5434 | -8/Materials | Identified exit to Garrison 5483 | -8/Materials | Entered Garrison 5483 | -8/Garrison | Accompanied by 2 allies 5572 | -8/Garrison | Triggered checkpoint 5583 | -8/Garrison | System corruption reached 10% 5602 | -8/Garrison | Core integrity fell below 50% 5603 | -8/Garrison | Build established: Hauler-Mutant 5615 | -8/Garrison | Core integrity fell below 20% 5644 | -8/Garrison | Destroyed by H-55 Commando with Gauss Rifle Last Messages --------------- 05616_ Heat Sink destroyed. 05617_ System corrupted: Energy discharge (-29). 05617_ Penetrated by Slug. 05622_ Destroyed Lgt. Nuclear Core. 05622_ H-55 Commando system corrupted by crushing effect. 05623_ Penetrated by Slug. 05628_ G-47 Trooper suffers critical hit (Smash). 05628_ Destroyed Aluminum Leg. 05628_ G-47 Trooper system corrupted by crushing effect. 05628_ G-47 Trooper IFF system glitched. 05629_ G-47 Trooper system terminally corrupted. 05629_ Penetrated by Slug. 05629_ Lgt. Treads destroyed. 05629_ Maul destroyed. 05631_ Slammed into H-55 Commando. 05632_ Penetrated by Slug. 05632_ Seismic Detector destroyed. 05633_ Critical hit (Burn: +18). 05635_ Penetrated by Slug. 05642_ UCUBKV2YOB%XH=PB|YXT4RZT6VW PSU Map ----- +----------------------------------------------------+ | ?????????????????????????????????????????????????? | | ?????????????????????????????????????????????????? | | ?????????????????????????????????????????????????? | | ?????????????????????????????????????????????????? | | ?????????????????????????????????????????????????? | | ?????????????????????????????????????????????????? | | ?????????????????????????????????????????????????? | | ?????????????????????????????????????????????????? | | ?????????????????????????????????????????????????? | | ?????????????????????????????????????????????????? | | ?????????????????????????????????????????????????? | | ?????????????????????????????????????????????????? | | ?????????????????????????????????????????????????? | | ?????????????????????????????????????????????????? | | ?????????????????????????????????????????????????? | | ?????????????????????????????????????????????????? | | ?????????????????????????????????????????????????? | | ??????????????????????????????????######?????????? | | ??????????????????????????????????# #?????????? | | ????????????????????????###???????# #?????????? | | ???????????????????????? #???????# ! #?????????? | | ????????????????????????# #???????### #?????????? | | ????????????????????????# #?????????# #?????????? | | ????????????????????????# #?????????# #?????????? | | ????????????????????????#*#?????????# #?????????? | | ?????????????????????####@########### #?????????? | | ?????????????????????#[Yh!g= ########??? | | ?????????????????????#Y##+#####+##### #??? | | ?????????????????????#g#?%#?????????# #??? | | ?????????????????????# #??#?????????######## #??? | | ?????????????????????# #??????????????????????#??? | | ?????????????????????# #?????????????????????????? | | ?????????????????????" #?????????????????????????? | | ?????????????????????" #?????????????????????????? | | ?????????????????????" #?????????????????????????? | | ?????????????????????? ??????????????????????????? | | ?????????????????????? ??????????????????????????? | | ?????????????????????? ??????????????????????????? | | ?????????????????????? ??????????????????????????? | | ?????????????????????? ??????????????????????????? | | ?????????????????????? ??????????????????????????? | | ??????????????????????#??????????????????????????? | | ?????????????????????????????????????????????????? | | ?????????????????????????????????????????????????? | | ?????????????????????????????????????????????????? | | ?????????????????????????????????????????????????? | | ?????????????????????????????????????????????????? | | ?????????????????????????????????????????????????? | | ?????????????????????????????????????????????????? | | ?????????????????????????????????????????????????? | +----------------------------------------------------+ Best States ------------- Heat Dissipation 42 Energy Generation 14 Energy Capacity 275 Matter Stores 300 Matter Capacity 300 Sight Range 16 Robot Scan Range 14 Terrain Scan Density 10 Armor Coverage 150 Evasion (%) 44 Recoil Reduction 2 Item Schematics ----------------- Lrg. Storage Unit | -10/Materials | Hacked Seismic Detector | -9/Materials | Scanalyzed Wheel | -9/Materials | Scanalyzed Hacking Suite | -8/Materials | Hacked Robot Schematics ------------------ O-16 Technician | -10/Materials | Hacked Fabricated ------------ Nothing Alien Tech Used ----------------- None Achievements -------------- None Challenges ------------ None Game ------ Seed TargetImpulseVibroblade Manual? 0 Play Time 00:36:29 Cumulative 257.6 hours Start 2022.10.15 @ 20:47:11 End 2022.10.15 @ 21:23:12 Sessions 1 Manual Loads 0 Difficulty Rogue Special Mode None Game No. 180 Rogue 177 Adventurer 3 Explorer 0 Win Type - Total 4 Types 3/0/1/0/0/0/0/0/0 Lore% 71 Gallery% 73 Achievement% 63 Wizard Run 0 Options --------- ASCII 0 Keyboard 0 Movement Numpad Keybinds 0 Fullscreen 1 Font 18/SmallcapsGlow Map View 76x50 Tactical HUD 1 Map Filters NONE Filters NONE Steam 1 RUN: 0c35f1e3-1117-4464-a5ea-eca90a4df39d